Cogmind - Beta 13 @@@ ROGUE MODE // 2024.05.20 @ 14:17:41 Player: Skergy Result: Destroyed by G-34 Mercenary with Small Laser Performance ------------- Evolutions (0) 0 Regions Visited (2) 400 Robots Destroyed (22) 110 Value Destroyed (371) 371 Prototype IDs (2) 40 Alien Tech Used (0) 0 Bonus (0) 0 TOTAL SCORE: 921 Bonus ------- None Cogmind --------- Core Integrity 0/250 Matter 300/300 Energy 121/125 System Corruption 0% Temperature Cool (8) Movement Walking (120) Location -10/Mines Parts ------- > --- POWER (1) -------- Light Ion Engine > --- PROPULSION (2) --- Aluminum Leg Aluminum Leg > --- UTILITY (2) ------ Signal Interpreter > --- WEAPON (2) ------- Particle Gun Ripper > --- INVENTORY (5) ---- Light Ion Engine Aluminum Leg Light Assault Rifle Datajack Mining Laser Peak State ------------ > --- POWER ------------ Ion Engine > --- PROPULSION ------- Aluminum Leg Aluminum Leg > --- UTILITY ---------- Improved Heat Sink Small Storage Unit > --- WEAPON ----------- Particle Gun Assault Rifle > --- INVENTORY -------- Light Ion Engine Light Treads Light Treads Aluminum Leg Aluminum Leg Medium Battery High-capacity Matter Pod Light Assault Rifle [Rating: 10] Favorites ----------- Power Light Ion Engine Engine Light Ion Engine Propulsion Aluminum Leg Leg Aluminum Leg Flight Unit Flight Unit Utility Signal Interpreter Device Sensor Array Storage Small Storage Unit Processor Signal Interpreter Protection Core Shielding Weapon Particle Gun Energy Gun Particle Gun Ballistic Gun Assault Rifle Slashing Weapon Ripper Build | -11 -10 -10 ------- Run | Yrd Mat Min Slots Evolved . | . . . Power . | . . . Propulsion . | . . . Utility . | . . . Weapon . | . . . Parts Attached 31 | 7 8 16 Power 6 | 1 2 3 Engine 6 | 1 2 3 Core . | . . . Reactor . | . . . Propulsion 11 | 2 . 9 Treads . | . . . Leg 6 | 2 . 4 Wheel . | . . . Hover . | . . . Flight 5 | . . 5 Utility 6 | 1 5 . Device 3 | . 3 . Storage 1 | 1 . . Processor 1 | . 1 . Hackware . | . . . Protection 1 | . 1 . Artifact . | . . . Weapon 8 | 3 1 4 Energy Gun 3 | 1 1 1 Energy Cannon . | . . . Ballistic Gun 4 | 2 . 2 Ballistic Cannon . | . . . Launcher . | . . . Special Weapon . | . . . Impact Weapon . | . . . Slashing Weapon 1 | . . 1 Piercing Weapon . | . . . Special Melee Weapon . | . . . Unidentified Prototypes . | . . . Parts Lost 7 | . 1 6 Power 1 | . . 1 Propulsion 3 | . . 3 Utility 1 | . . 1 Weapon 2 | . 1 1 Highest Loss Streak 4 | . 1 4 To Critical Strikes . | . . . Average Slot Usage (%) 90 | . 96 86 Engine 13 | . 14 13 Leg 20 | . 28 14 Flight 6 | . . 12 Device 5 | . 7 3 Storage 5 | . 11 . Processor 8 | . 2 14 Protection 1 | . 3 . Energy Gun 11 | . 14 10 Ballistic Gun 11 | . 13 9 Slashing Weapon 4 | . . 8 Naked Turns . | . . . Heaviest Build 16 | 12 16 10 Greatest Support 20 | 20 20 20 Greatest Overweight (x) 2 | . . 2 Average Overweight (x) . | . . . Largest Inventory Capacity 8 | 8 8 5 Average Capacity 6 | 7 7 5 Most Carried 8 | 6 8 5 Average Carried 5 | 5 7 4 Final Capacity 8 | 8 5 5 Final Carried 6 | 6 5 5 Class Distribution -------------------- 50% | Scavenger-Mutant 49% | Mutant Dominant Class ---------------- Mutant | -10/Materials Scavenger-Mutant | -10/Mines Resources | -11 -10 -10 ----------- Run | Yrd Mat Min Matter Collected 684 | 214 304 166 Remotely . | . . . Salvage Created 556 | . 328 228 Parts 46 | . 25 21 Haulers Intercepted . | . . . Recyclers Shooed . | . . . Parts Field Recycled . | . . . Retrieved Matter . | . . . Parts Self-Destructed . | . . . Prevented . | . . . Kills | -11 -10 -10 ------- Run | Yrd Mat Min Combat Hostiles Destroyed 17 | . 11 6 Guns 17 | . 11 6 Classes Destroyed 6 | . 3 3 Worker 2 | . . 2 Tunneler 1 | . . 1 Recycler 1 | . . 1 Watcher 1 | . 1 . Swarmer 11 | . 6 5 Grunt 6 | . 5 1 Best Kill Streak 3 | . 3 3 Combat Bots Only 3 | . 3 3 Max Kills in Single Turn 1 | . 1 1 Gunslinging . | . . . Exploded . | . . . Melee . | . . . Uniques/NPCs Destroyed . | . . . Combat | -11 -10 -10 -------- Run | Yrd Mat Min Hostile Shots Fired 120 | . 62 58 Missed 33 | . 18 15 Damage Taken 875 | . 495 380 Core 259 | . 120 139 Absorbed by Shields . | . . . Redirected to Shielding 1 | . 1 . Core Remaining (%) 100 | 100 . . Volleys Fired 60 | . 32 28 Largest 2 | . 2 2 Hottest 85 | . 85 85 Shots Fired 106 | . 63 43 Gun 106 | . 63 43 Cannon . | . . . Launcher . | . . . Special . | . . . Kinetic 59 | . 31 28 Thermal 47 | . 32 15 Explosive . | . . . Electromagnetic . | . . . Robot Hit Streak 10 | . 10 2 Robot Miss Streak 4 | . 3 4 Penetration Max . | . . . Secondary Targets 2 | . . 2 Max Gunslinging Chain 1 | . . 1 Shots Hit Robots 63 | . 38 25 Core Hits 30 | . 19 11 Critical Kills 1 | . 1 . Critical Parts Destroyed . | . . . Critical Strikes 1 | . 1 . Destroy 1 | . 1 . Melee Attacks 6 | . . 6 Impact . | . . . Slashing 6 | . . 6 Piercing . | . . . Sneak Attacks 4 | . . 4 Combat Hostiles . | . . . Follow-up Attacks . | . . . Damage Inflicted 1103 | . 576 527 Guns 786 | . 566 220 Cannons . | . . . Explosions . | . . . Melee 307 | . . 307 Ramming 10 | . 10 . Kinetic 419 | . 274 145 Thermal 367 | . 292 75 Explosive . | . . . Electromagnetic . | . . . Impact . | . . . Slashing 307 | . . 307 Piercing . | . . . Highest Corruption . | . . . Average Corruption . | . . . Corruption Purged . | . . . Corruption Blocked . | . . . Overload Shots . | . . . Overflow Damage 93 | . . 93 Projectiles . | . . . Explosions . | . . . Melee 93 | . . 93 Knockbacks . | . . . Impact . | . . . Kinetic . | . . . Secondary . | . . . Self-Inflicted Damage . | . . . Shots . | . . . Rammed . | . . . Targets Rammed 3 | . 3 . Kicked 3 | . 3 . Crushed . | . . . Highest Temperature 228 | . 222 228 Average Temperature 95 | . 93 99 Received Heat Transfer 288 | . 225 63 Siege Activations . | . . . Robots Corrupted . | . . . Combat Hostiles . | . . . Parts Fried . | . . . Impact Corruptions . | . . . Robots Melted . | . . . Combat Hostiles . | . . . Parts Melted . | . . . Heat Transferred 925 | . 740 185 Parts Sabotaged . | . . . Parts Stolen . | . . . Parts Stripped . | . . . Power Chain Reactions . | . . . Alert | -11 -10 -10 ------- Run | Yrd Mat Min Peak Influence 256 | . 256 146 Initial 46 | . . 46 Average 68 | . 98 67 Maximum Alert Level 1 | . 1 . Low Security (%) 98 | 100 96 100 Level 1 1 | . 3 . Level 2 . | . . . Level 3 . | . . . Level 4 . | . . . Level 5 . | . . . High Security . | . . . Max Security . | . . . Squads Dispatched 4 | . 4 . Investigation 3 | . 3 . Extermination . | . . . Reinforcement 1 | . 1 . Assault . | . . . Garrison . | . . . Intercept . | . . . Searches Triggered . | . . . Construction Impeded . | . . . Haulers Reinforced . | . . . Active Scanning Responses . | . . . Cargo Convoy Interrupts . | . . . Stealth | -11 -10 -10 --------- Run | Yrd Mat Min Distress Signals . | . . . Communications Jammed . | . . . Distress Signals . | . . . Times Spotted 28 | . 17 11 Peak Tracking Total 3 | . 3 3 Tactical Retreats . | . . . Traps | -11 -10 -10 ------- Run | Yrd Mat Min Traps Triggered 1 | . 1 . Indirectly . | . . . Trap Hack Attempts . | . . . Triggered . | . . . Disarmed . | . . . Reprogrammed 1 | . 1 . Reused . | . . . Traps Extracted . | . . . Installed . | . . . Triggered . | . . . Machines | -11 -10 -10 ---------- Run | Yrd Mat Min Machines Disabled . | . . . Max in Single Turn . | . . . Machines Repaired . | . . . Machines Dismantled . | . . . Machines Sabotaged . | . . . Overloaded Fab Kills . | . . . Hacking | -11 -10 -10 --------- Run | Yrd Mat Min Machines Accessed 5 | . 5 . Terminals 4 | . 4 . Fabricators . | . . . Repair Stations . | . . . Recycling Units 1 | . 1 . Scanalyzers . | . . . Garrison Access . | . . . Total Hacks 20 | . 20 . Successful 7 | . 7 . Failed 13 | . 13 . Catastrophic 6 | . 6 . Database Lockouts . | . . . Manual 8 | . 8 . Terminals 18 | . 18 . Fabricators . | . . . Repair Stations . | . . . Recycling Units 2 | . 2 . Scanalyzers . | . . . Garrison Access . | . . . Terminal Hacks 5 | . 5 . Prototype ID Bank 1 | . 1 . Emergency Access Points 1 | . 1 . Locate Traps 1 | . 1 . Reprogram Traps 1 | . 1 . Registered Components 1 | . 1 . Fabricator Hacks . | . . . Repair Station Hacks . | . . . Recycling Unit Hacks 2 | . 2 . Report Inventory 1 | . 1 . Retrieve Components 1 | . 1 . Scanalyzer . | . . . Garrison Access Hacks . | . . . Unauthorized Hacks . | . . . Terminals . | . . . Fabricators . | . . . Repair Stations . | . . . Recycling Units . | . . . Scanalyzers . | . . . Garrison Access . | . . . Data Cores Recovered . | . . . Used . | . . . Hacking Detections 5 | . 5 . Full Trace Events 4 | . 4 . Feedback Events . | . . . Feedback Blocked . | . . . Robot Schematics Acquired . | . . . Robots Built . | . . . Authchips . | . . . Time . | . . . Total Robot Build Rating . | . . . Part Schematics Acquired . | . . . Parts Built . | . . . Authchips . | . . . Time . | . . . Total Part Build Rating . | . . . Parts Repaired . | . . . Time . | . . . Parts Recycled . | . . . Recycled Matter . | . . . Retrieved Matter . | . . . Retrieved Components 2 | . 2 . Parts Scanalyzed . | . . . Part Schematics Acquired . | . . . Parts Damaged . | . . . Bothacking | -11 -10 -10 ------------ Run | Yrd Mat Min Used RIF Installer . | . . . Robots Hacked . | . . . Non-combat . | . . . Combat . | . . . Robot Hacks Applied . | . . . Relay Couplers Released . | . . . Fabnet Peak Effective % . | . . . Robots Rewired . | . . . Allies Hacked . | . . . Hacks Repelled . | . . . Allies | -11 -10 -10 -------- Run | Yrd Mat Min Total Allies 1 | . . 1 Largest Group 1 | . . 1 Highest-Rated Group 31 | . . 31 Highest-Rated Ally 31 | . . 31 Total Orders . | . . . Ally Attacks . | . . . Total Damage . | . . . Kills . | . . . Allies Corrupted . | . . . Allies Melted . | . . . Intel | -11 -10 -10 ------- Run | Yrd Mat Min Robot Analysis Total . | . . . Derelict Logs Recovered 1 | . . 1 Drone Launches . | . . . Drone Recoveries . | . . . Exploration | -11 -10 -10 ------------- Run | Yrd Mat Min Turns Passed 1420 | 240 553 627 Spaces Moved 1088 | 94 345 649 Core 3 | 3 . . Treads . | . . . Legs 727 | 91 345 291 Wheels . | . . . Hover . | . . . Flight 358 | . . 358 Fastest Speed 37 | 50 120 37 Average Speed 93 | 117 120 76 Slowest Speed 200 | 120 120 200 Overloaded Moves . | . . . Propulsion Burnouts . | . . . Robots Hopped . | . . . Cave-ins Triggered . | . . . Exploration Rate (%) 51 | 6 64 83 Regions Visited 2 Branch Regions 1 Pre-discovered Areas 1 | . . 1 Known Exits Taken 1 | . 1 . Unknown Exits Taken 1 | 1 . . Scrap Searched 1 | . . 1 Spaces Dug . | . . . Terrain Destroyed . | . . . Melee . | . . . Projectile . | . . . AOE . | . . . Terrain Rammed . | . . . Walls Destroyed . | . . . Machines Disabled . | . . . Actions | -11 -10 -10 --------- Run | Yrd Mat Min Total 1383 | 220 424 739 Wait 148 | 114 18 16 Move 1086 | 93 344 649 Hop . | . . . Pick Up 20 | 6 6 8 Fast Attach 20 | 6 6 8 Attach 3 | . . 3 Detach 2 | . . 2 Swap 8 | 1 2 5 Drop 27 | . 13 14 Fire 60 | . 32 28 Melee 6 | . . 6 Ram . | . . . Kick 3 | . 3 . Crush . | . . . Escape Stasis . | . . . Rewire . | . . . Trap . | . . . Miscellaneous . | . . . Route ------- -11/Scrapyard -10/Materials -10/Mines (discovered 1 exit: *Mat) History --------- Turn | Location | Event 7 | -11/Scrapyard | Discovered new exit (range 15) 241 | -11/Scrapyard | Entered Materials 318 | -10/Materials | Build established: Mutant 766 | -10/Materials | Discovered new exit (range 4) 790 | -10/Materials | Identified exit to Mines 794 | -10/Materials | Entered Mines 845 | -10/Mines | Discovered new exit (range 6) 850 | -10/Mines | Identified exit to Materials 880 | -10/Mines | Core integrity fell below 50% 881 | -10/Mines | Met a Derelict bent on vengeance 983 | -10/Mines | Lost 4 parts (1p1n1u1w) 988 | -10/Mines | Found a hidden stash of uninstalled traps 994 | -10/Mines | Build established: Scavenger-Mutant 1049 | -10/Mines | Learned Materials terminal intel 1068 | -10/Mines | A weapon hastily lodged in a ceiling crevice suddenly fell to the ground 1089 | -10/Mines | Core integrity fell below 20% 1113 | -10/Mines | Escorted by a lone wolf Derelict 1133 | -10/Mines | Learned location of Storage (-7) 1421 | -10/Mines | Destroyed by G-34 Mercenary with Small Laser Last Messages --------------- 01181_ Dropped Flight Unit. 01182_ Acquired Datajack. 01189_ K-01 Serf collects debris. 01288_ Dropped Flight Unit. 01288_ Acquired Aluminum Leg. 01291_ Dropped Aluminum Leg. 01293_ Dropped Flight Unit. 01293_ Acquired Aluminum Leg. 01295_ Dropped Aluminum Leg. 01295_ Acquired Aluminum Leg. 01332_ Acquired 19 matter. 01333_ Acquired 1 matter. 01339_ Sneak attack on K-01 Serf. 01339_ Destroyed Wheel. 01339_ K-01 Serf destroyed. 01391_ Sneak attack on R-06 Scavenger. 01391_ R-06 Scavenger destroyed. 01397_ Sneak attack on T-07 Excavator. 01397_ Destroyed Lgt. Ion Engine. 01397_ T-07 Excavator destroyed. Map ----- +----------------------------------------------------+ | ?????????????????????????## ##?????? | | ??????????????????????????## ####???? | | ????????????????##?????????## ##??? | | ???????????????? ??????????# #??? | | ???????????## ? #?????????# #??? | | ??????????? """ #?????????# ##??? | | ????????????# """ #?????????## ##???? | | ????????????# """ #??????????# ##????? | | ????????????# #??????????# #?????? | | ????????????# """ #??????????## #?????? | | #???????????# """ #####???????# #?????? | | #????????# ## """ #???????# ##????? | | #????????# ### #??????## ##???? | | ?????????#### #?# #?????## #???? | | ????????????# #?# ####### #???? | | ????????????#######?# #???? | | ????????????????????##### ##???? | | ????????????????????????# # ##????? | | ????????##############??# ## #?????? | | ????????# #??# #### ##?????? | | ????????# ########## #??# #??# ##??????? | | ????????# #????????# #??# #??# #???????? | | ####????# #????????# #??# #??# #???????? | | # ####?# #????????# #??# #??# #???????? | | ### #????????# ####g #??# #???????? | | ## #?????#### g @ #??# #???????? | | # ## #????## ###### #### #######?? | | ## ### #?#### ##?## ## ## ##? | | ?# ### ### ### = # # #? | | ?# ## ## !%% #? | | ?# ######*%! ## ##### #?? | | ?## #??## = ##???######?? | | ?## ##?## ## ##???????????? | | ## #?## #### ###########????? | | ##?# ##?# ##?# #????? | | #### ## ##?# ##??# """ #????? | | ## #### ### #???# """ #????? | | #??## ### #???# """ #????? | | # ##???## ##?###???# #????? | | ## ##?????#= #????????# #????? | | ?## ##??????#%=#????????# #????? | | #### ##???????# %#????????##### ###????? | | ######????????#*[#????????????# #??????? | | #????????????#*%#??????????### #??????? | | ######???????#!=#?????????## #??????? | | #???????# =########### #??????? | | #???????# % ##?????? | | = ### #???????##### ######## #?????? | | [ #?# #???????????# #??????## #?????? | | ##?# #???????????# #???????# #?????? | +----------------------------------------------------+ Best States ------------- Heat Dissipation 39 Energy Generation 10 Energy Capacity 250 Matter Stores 300 Matter Capacity 300 Sight Range 16 Robot Scan Range 14 Terrain Scan Density 10 Core Shielding 20 Evasion (%) 62 Item Schematics ----------------- None Robot Schematics ------------------ None Fabricated ------------ Nothing Alien Tech Used ----------------- None Achievements -------------- None Challenges ------------ None Game ------ Seed StormCatalystDrive Manual? 0 Play Time 00:22:59 Cumulative 10.8 hours Start 2024.05.20 @ 13:56:47 End 2024.05.20 @ 14:17:41 Sessions 1 Manual Loads 0 Difficulty Rogue Special Mode None Game No. 7 Rogue 7 Adventurer 0 Explorer 0 Win Type - Total 0 Types 0/0/0/0/0/0/0/0/0 Lore% 11 Gallery% 17 Achievement% 12 Wizard Run 0 Options --------- Layout 1 ASCII 0 Keyboard 1 Movement Numpad Keybinds 0 Fullscreen 1 Font 32/Cog Map View 50x35 Zoom Use 0% Tactical HUD 1 Map Filters NONE Filters NONE Steam 1 RUN: 4a8a0276-170b-4469-a02a-4323e91d8a44